[Event "Titled Tuesday Blitz August 22 Early 2023"]
[White "Baghdasaryan, Vahe"]
[Black "Andrade Truyol, Geiner Jose"]
[WhiteFideId "13303139"]
[BlackFideId "4431987"]
[WhiteElo "2392"]
[BlackElo "2218"]
[Result "0-1"]
[Round "9"]
[TimeControl "180+1"]
[Date "2023.08.22"]
[WhiteClock "0:00:17"]
[BlackClock "0:00:53"]
[Board "165"]

1. e4 {[%clk 0:02:55]}  e5 {[%clk 0:02:58]} 2. Nf3 {[%clk 0:02:54]}  Nc6 {[%clk 0:02:58]} 3. Nc3 {[%clk 0:02:54]}  Be7 {[%clk 0:02:54]} 4. d4 {[%clk 0:02:52]}  exd4 {[%clk 0:02:53]} 5. Nxd4 {[%clk 0:02:53]}  d6 {[%clk 0:02:53]} 6. Nxc6 {[%clk 0:02:48]}  bxc6 {[%clk 0:02:54]} 7. Bc4 {[%clk 0:02:47]}  Nf6 {[%clk 0:02:54]} 8. O-O {[%clk 0:02:45]}  O-O {[%clk 0:02:54]} 9. Bd3 {[%clk 0:02:40]}  Nd7 {[%clk 0:02:49]} 10. a3 {[%clk 0:02:34]}  Bf6 {[%clk 0:02:47]} 11. Re1 {[%clk 0:02:21]}  Rb8 {[%clk 0:02:45]} 12. Rb1 {[%clk 0:02:16]}  Bxc3 {[%clk 0:02:42]} 13. Re3 {[%clk 0:02:13]}  Bf6 {[%clk 0:02:33]} 14. f4 {[%clk 0:02:11]}  g6 {[%clk 0:02:33]} 15. Rf3 {[%clk 0:02:05]}  Bg7 {[%clk 0:02:32]} 16. b4 {[%clk 0:02:03]}  d5 {[%clk 0:02:19]} 17. e5 {[%clk 0:01:58]}  Nb6 {[%clk 0:02:15]} 18. Be3 {[%clk 0:01:53]}  Bg4 {[%clk 0:02:10]} 19. Bc5 {[%clk 0:01:53]}  Bxf3 {[%clk 0:02:09]} 20. Qxf3 {[%clk 0:01:52]}  Re8 {[%clk 0:02:08]} 21. f5 {[%clk 0:01:49]}  Bxe5 {[%clk 0:02:05]} 22. Rf1 {[%clk 0:01:46]}  Qd7 {[%clk 0:01:46]} 23. h4 {[%clk 0:01:00]}  Nc4 {[%clk 0:01:23]} 24. Qh3 {[%clk 0:00:28]}  f6 {[%clk 0:01:06]} 25. fxg6 {[%clk 0:00:18]}  Qxh3 {[%clk 0:01:05]} 26. gxh7+ {[%clk 0:00:17]}  Kg7 {[%clk 0:01:03]} 27. gxh3 {[%clk 0:00:17]}  Nxa3 {[%clk 0:00:59]} 28. Kh1 {[%clk 0:00:16]}  Nc4 {[%clk 0:00:54]} 29. Rg1+ {[%clk 0:00:15]}  Kh8 {[%clk 0:00:50]} 30. h5 {[%clk 0:00:15]}  Nd6 {[%clk 0:00:48]} 31. h6 {[%clk 0:00:14]}  Ne4 {[%clk 0:00:47]} 32. Bxe4 {[%clk 0:00:12]}  dxe4 {[%clk 0:00:47]} 33. Rg7 {[%clk 0:00:12]}  Bd6 {[%clk 0:00:46]} 34. Bd4 {[%clk 0:00:10]}  Re6 {[%clk 0:00:44]} 35. c3 {[%clk 0:00:09]}  a5 {[%clk 0:00:44]} 36. Rf7 {[%clk 0:00:09]}  axb4 {[%clk 0:00:44]} 37. cxb4 {[%clk 0:00:06]}  Rxb4 {[%clk 0:00:41]} 38. Bxf6+ {[%clk 0:00:06]}  Rxf6 {[%clk 0:00:41]} 39. Rxf6 {[%clk 0:00:07]}  Kxh7 {[%clk 0:00:40]} 40. Re6 {[%clk 0:00:07]}  Rd4 {[%clk 0:00:39]} 41. Kg2 {[%clk 0:00:08]}  c5 {[%clk 0:00:39]} 42. Kf2 {[%clk 0:00:08]}  c4 {[%clk 0:00:40]} 43. Ke3 {[%clk 0:00:09]}  Rd3+ {[%clk 0:00:40]} 44. Kxe4 {[%clk 0:00:09]}  Rxh3 {[%clk 0:00:40]} 45. Kd5 {[%clk 0:00:08]}  Rxh6 {[%clk 0:00:41]} 46. Rxh6+ {[%clk 0:00:05]}  Kxh6 {[%clk 0:00:41]} 47. Kxc4 {[%clk 0:00:06]}  Kg6 {[%clk 0:00:42]} 48. Kd5 {[%clk 0:00:07]}  Kf5 {[%clk 0:00:43]} 49. Kc6 {[%clk 0:00:08]}  Ke6 {[%clk 0:00:43]} 50. Kb5 {[%clk 0:00:08]}  Kd5 {[%clk 0:00:44]} 51. Ka4 {[%clk 0:00:08]}  c5 {[%clk 0:00:45]} 52. Kb3 {[%clk 0:00:08]}  Kd4 {[%clk 0:00:46]} 53. Kc2 {[%clk 0:00:09]}  c4 {[%clk 0:00:47]} 54. Kc1 {[%clk 0:00:10]}  Kd3 {[%clk 0:00:48]} 55. Kd1 {[%clk 0:00:11]}  c3 {[%clk 0:00:49]} 56. Kc1 {[%clk 0:00:12]}  Ba3+ {[%clk 0:00:49]} 57. Kd1 {[%clk 0:00:12]}  c2+ {[%clk 0:00:50]} 58. Ke1 {[%clk 0:00:12]}  c1=Q+ {[%clk 0:00:51]} 59. Kf2 {[%clk 0:00:13]}  Qg5 {[%clk 0:00:51]} 60. Kf3 {[%clk 0:00:14]}  Qf5+ {[%clk 0:00:51]} 61. Kg2 {[%clk 0:00:15]}  Bd6 {[%clk 0:00:51]} 62. Kh1 {[%clk 0:00:16]}  Qh3+ {[%clk 0:00:51]} 63. Kg1 {[%clk 0:00:16]}  Qh2+ {[%clk 0:00:52]} 64. Kf1 {[%clk 0:00:17]}  Ke3 {[%clk 0:00:52]} 65. Ke1 {[%clk 0:00:17]}  Qe2# {[%clk 0:00:53]} 0-1


[Site "https://www.chess.com"]

[Event "Titled Tuesday Blitz August 22 Early 2023"]
[White "Seifert, Henryk"]
[Black "Buscar, Michael"]
[WhiteFideId "1100963"]
[BlackFideId "2603616"]
[WhiteElo "2128"]
[BlackElo "2343"]
[Result "1/2-1/2"]
[Round "9"]
[TimeControl "180+1"]
[Date "2023.08.22"]
[WhiteClock "0:00:25"]
[BlackClock "0:00:06"]
[Board "167"]

1. e4 {[%clk 0:03:00]}  c5 {[%clk 0:02:58]} 2. Nf3 {[%clk 0:03:00]}  Nc6 {[%clk 0:02:58]} 3. Bb5 {[%clk 0:02:59]}  Nf6 {[%clk 0:02:58]} 4. e5 {[%clk 0:02:57]}  Nd5 {[%clk 0:02:57]} 5. O-O {[%clk 0:02:56]}  g6 {[%clk 0:02:54]} 6. Re1 {[%clk 0:02:55]}  Bg7 {[%clk 0:02:52]} 7. Nc3 {[%clk 0:02:53]}  Nc7 {[%clk 0:02:52]} 8. Bxc6 {[%clk 0:02:44]}  dxc6 {[%clk 0:02:48]} 9. d3 {[%clk 0:02:39]}  O-O {[%clk 0:02:39]} 10. h3 {[%clk 0:02:36]}  Ne6 {[%clk 0:02:37]} 11. Qe2 {[%clk 0:02:11]}  Nd4 {[%clk 0:02:34]} 12. Nxd4 {[%clk 0:02:01]}  cxd4 {[%clk 0:02:31]} 13. Nb1 {[%clk 0:01:53]}  c5 {[%clk 0:02:31]} 14. Nd2 {[%clk 0:01:53]}  b6 {[%clk 0:02:29]} 15. Nf3 {[%clk 0:01:44]}  Qd5 {[%clk 0:02:26]} 16. Bg5 {[%clk 0:01:36]}  f6 {[%clk 0:02:09]} 17. exf6 {[%clk 0:01:14]}  exf6 {[%clk 0:02:10]} 18. Bf4 {[%clk 0:01:12]}  Bb7 {[%clk 0:02:02]} 19. Qe6+ {[%clk 0:01:10]}  Qxe6 {[%clk 0:01:55]} 20. Rxe6 {[%clk 0:01:11]}  Rae8 {[%clk 0:01:53]} 21. Rae1 {[%clk 0:01:08]}  Rxe6 {[%clk 0:01:41]} 22. Rxe6 {[%clk 0:01:08]}  Kf7 {[%clk 0:01:42]} 23. Re1 {[%clk 0:00:59]}  Bxf3 {[%clk 0:01:24]} 24. gxf3 {[%clk 0:01:00]}  Rd8 {[%clk 0:01:22]} 25. a4 {[%clk 0:00:56]}  Bf8 {[%clk 0:01:19]} 26. b3 {[%clk 0:00:55]}  Bd6 {[%clk 0:01:18]} 27. Bg3 {[%clk 0:00:52]}  f5 {[%clk 0:01:06]} 28. Bxd6 {[%clk 0:00:51]}  Rxd6 {[%clk 0:01:06]} 29. f4 {[%clk 0:00:51]}  Re6 {[%clk 0:00:52]} 30. Rxe6 {[%clk 0:00:48]}  Kxe6 {[%clk 0:00:52]} 31. Kg2 {[%clk 0:00:46]}  Kd5 {[%clk 0:00:47]} 32. Kg3 {[%clk 0:00:44]}  a6 {[%clk 0:00:42]} 33. h4 {[%clk 0:00:44]}  h5 {[%clk 0:00:37]} 34. Kf3 {[%clk 0:00:42]}  b5 {[%clk 0:00:33]} 35. axb5 {[%clk 0:00:40]}  axb5 {[%clk 0:00:33]} 36. Ke2 {[%clk 0:00:40]}  c4 {[%clk 0:00:23]} 37. Kd2 {[%clk 0:00:38]}  Kc5 {[%clk 0:00:22]} 38. Kc1 {[%clk 0:00:30]}  Kb4 {[%clk 0:00:18]} 39. Kb2 {[%clk 0:00:27]}  c3+ {[%clk 0:00:03]} 40. Ka2 {[%clk 0:00:26]}  Ka5 {[%clk 0:00:03]} 41. Ka3 {[%clk 0:00:25]}  b4+ {[%clk 0:00:04]} 42. Ka2 {[%clk 0:00:25]}  Kb5 {[%clk 0:00:05]} 43. Kb1 {[%clk 0:00:24]}  Ka5 {[%clk 0:00:05]} 44. Ka1 {[%clk 0:00:24]}  Kb5 {[%clk 0:00:05]} 45. Kb1 {[%clk 0:00:24]}  Ka5 {[%clk 0:00:06]} 46. Ka1 {[%clk 0:00:25]}  Kb5 {[%clk 0:00:06]} 47. Kb1 {[%clk 0:00:25]} 1/2-1/2


[Site "https://www.chess.com"]

[Event "Titled Tuesday Blitz August 22 Early 2023"]
[White "Flis, Pawel"]
[Black "Wang, Alexander J"]
[WhiteFideId "1112864"]
[BlackFideId "30955270"]
[WhiteElo "2137"]
[BlackElo "2283"]
[Result "1-0"]
[Round "9"]
[TimeControl "180+1"]
[Date "2023.08.22"]
[WhiteClock "0:01:50"]
[BlackClock "0:00:14"]
[Board "169"]

1. e4 {[%clk 0:03:00]}  c5 {[%clk 0:02:55]} 2. Nf3 {[%clk 0:03:00]}  d6 {[%clk 0:02:54]} 3. d4 {[%clk 0:02:59]}  cxd4 {[%clk 0:02:55]} 4. Nxd4 {[%clk 0:03:00]}  Nf6 {[%clk 0:02:55]} 5. Nc3 {[%clk 0:03:00]}  g6 {[%clk 0:02:53]} 6. Be3 {[%clk 0:02:59]}  Bg7 {[%clk 0:02:53]} 7. f3 {[%clk 0:02:59]}  O-O {[%clk 0:02:50]} 8. Qd2 {[%clk 0:02:59]}  Nc6 {[%clk 0:02:49]} 9. Bc4 {[%clk 0:02:59]}  Bd7 {[%clk 0:02:48]} 10. O-O-O {[%clk 0:02:58]}  Ne5 {[%clk 0:02:45]} 11. Bb3 {[%clk 0:02:58]}  Rc8 {[%clk 0:02:43]} 12. Kb1 {[%clk 0:02:58]}  Nc4 {[%clk 0:02:30]} 13. Bxc4 {[%clk 0:02:58]}  Rxc4 {[%clk 0:02:30]} 14. Nde2 {[%clk 0:02:58]}  b5 {[%clk 0:02:26]} 15. Bh6 {[%clk 0:02:54]}  a5 {[%clk 0:02:21]} 16. Bxg7 {[%clk 0:02:52]}  Kxg7 {[%clk 0:02:15]} 17. h4 {[%clk 0:02:52]}  h5 {[%clk 0:02:14]} 18. g3 {[%clk 0:02:52]}  b4 {[%clk 0:02:03]} 19. Nd5 {[%clk 0:02:52]}  Nxd5 {[%clk 0:02:00]} 20. exd5 {[%clk 0:02:52]}  Qc7 {[%clk 0:01:49]} 21. Nd4 {[%clk 0:02:45]}  Rc8 {[%clk 0:01:40]} 22. Rh2 {[%clk 0:02:45]}  a4 {[%clk 0:01:24]} 23. g4 {[%clk 0:02:44]}  hxg4 {[%clk 0:01:19]} 24. h5 {[%clk 0:02:43]}  Rh8 {[%clk 0:01:07]} 25. hxg6 {[%clk 0:02:40]}  Rxh2 {[%clk 0:00:57]} 26. Qxh2 {[%clk 0:02:41]}  fxg6 {[%clk 0:00:55]} 27. Qd2 {[%clk 0:02:34]}  b3 {[%clk 0:00:33]} 28. axb3 {[%clk 0:02:32]}  axb3 {[%clk 0:00:33]} 29. cxb3 {[%clk 0:02:17]}  Rc5 {[%clk 0:00:30]} 30. Rh1 {[%clk 0:02:13]}  Rxd5 {[%clk 0:00:25]} 31. Qh6+ {[%clk 0:02:11]}  Kf6 {[%clk 0:00:25]} 32. Qh8+ {[%clk 0:02:00]}  Kg5 {[%clk 0:00:24]} 33. f4+ {[%clk 0:01:57]}  Kxf4 {[%clk 0:00:17]} 34. Rf1+ {[%clk 0:01:55]}  Kg3 {[%clk 0:00:15]} 35. Ne2+ {[%clk 0:01:52]}  Kg2 {[%clk 0:00:14]} 36. Qh1# {[%clk 0:01:50]} 1-0


[Site "https://www.chess.com"]

[Event "Titled Tuesday Blitz August 22 Early 2023"]
[White "Thiel, Thomas"]
[Black "Gyulamiryan-koryun"]
[WhiteFideId "4615964"]
[WhiteElo "2229"]
[BlackElo "2043"]
[Result "1-0"]
[Round "9"]
[TimeControl "180+1"]
[Date "2023.08.22"]
[WhiteClock "0:02:15"]
[BlackClock "0:01:52"]
[Board "173"]

1. e4 {[%clk 0:02:56]}  c5 {[%clk 0:02:59]} 2. Nc3 {[%clk 0:02:53]}  Nc6 {[%clk 0:02:58]} 3. Bb5 {[%clk 0:02:52]}  Nd4 {[%clk 0:02:57]} 4. Bc4 {[%clk 0:02:52]}  g6 {[%clk 0:02:55]} 5. Nf3 {[%clk 0:02:51]}  Bg7 {[%clk 0:02:54]} 6. Nxd4 {[%clk 0:02:51]}  Bxd4 {[%clk 0:02:50]} 7. Qf3 {[%clk 0:02:50]}  e6 {[%clk 0:02:48]} 8. Nb5 {[%clk 0:02:48]}  Bg7 {[%clk 0:02:35]} 9. Qg3 {[%clk 0:02:41]}  e5 {[%clk 0:02:29]} 10. Nd6+ {[%clk 0:02:38]}  Ke7 {[%clk 0:02:28]} 11. Nxf7 {[%clk 0:02:37]}  Qc7 {[%clk 0:02:14]} 12. Nxh8 {[%clk 0:02:36]}  Nh6 {[%clk 0:02:11]} 13. Qh4+ {[%clk 0:02:21]}  Ke8 {[%clk 0:02:02]} 14. d3 {[%clk 0:02:21]}  d5 {[%clk 0:01:52]} 15. Bxd5 {[%clk 0:02:15]} 1-0


[Site "https://www.chess.com"]

[Event "Titled Tuesday Blitz August 22 Early 2023"]
[White "elcala"]
[Black "Vaglio Munoz, Jaime"]
[BlackFideId "6500145"]
[WhiteElo "1697"]
[BlackElo "2302"]
[Result "0-1"]
[Round "9"]
[TimeControl "180+1"]
[Date "2023.08.22"]
[WhiteClock "0:00:17"]
[BlackClock "0:02:14"]
[Board "179"]

1. d4 {[%clk 0:03:00]}  c5 {[%clk 0:02:57]} 2. Nf3 {[%clk 0:02:57]}  cxd4 {[%clk 0:02:56]} 3. Nxd4 {[%clk 0:02:56]}  e5 {[%clk 0:02:54]} 4. Nb3 {[%clk 0:02:56]}  d5 {[%clk 0:02:54]} 5. e4 {[%clk 0:02:50]}  d4 {[%clk 0:02:53]} 6. c3 {[%clk 0:02:48]}  Nc6 {[%clk 0:02:53]} 7. cxd4 {[%clk 0:02:47]}  exd4 {[%clk 0:02:54]} 8. Bb5 {[%clk 0:02:31]}  Bb4+ {[%clk 0:02:53]} 9. Bd2 {[%clk 0:02:30]}  Bxd2+ {[%clk 0:02:41]} 10. Qxd2 {[%clk 0:02:24]}  Ne7 {[%clk 0:02:39]} 11. O-O {[%clk 0:02:22]}  O-O {[%clk 0:02:38]} 12. Rd1 {[%clk 0:02:18]}  Bg4 {[%clk 0:02:33]} 13. f3 {[%clk 0:02:16]}  Be6 {[%clk 0:02:29]} 14. Nxd4 {[%clk 0:02:01]}  Qb6 {[%clk 0:02:28]} 15. Bxc6 {[%clk 0:01:40]}  Nxc6 {[%clk 0:02:29]} 16. Nc3 {[%clk 0:01:12]}  Rad8 {[%clk 0:02:27]} 17. Ne2 {[%clk 0:01:11]}  Bc4 {[%clk 0:02:23]} 18. Kf1 {[%clk 0:00:27]}  Nxd4 {[%clk 0:02:20]} 19. Re1 {[%clk 0:00:20]}  Nxe2 {[%clk 0:02:15]} 20. Qxd8 {[%clk 0:00:17]}  Qg1# {[%clk 0:02:14]} 0-1


[Site "https://www.chess.com"]

[Event "Titled Tuesday Blitz August 22 Early 2023"]
[White "Wu, Derek"]
[Black "jjbolanos"]
[WhiteFideId "30914558"]
[WhiteElo "2678"]
[BlackElo "2051"]
[Result "1-0"]
[Round "9"]
[TimeControl "180+1"]
[Date "2023.08.22"]
[WhiteClock "0:00:12"]
[BlackClock "0:00:03"]
[Board "180"]

1. e4 {[%clk 0:03:00]}  c5 {[%clk 0:02:57]} 2. Nf3 {[%clk 0:03:00]}  e6 {[%clk 0:02:39]} 3. d4 {[%clk 0:02:57]}  cxd4 {[%clk 0:02:40]} 4. Nxd4 {[%clk 0:02:57]}  a6 {[%clk 0:02:41]} 5. Bd3 {[%clk 0:02:56]}  Nf6 {[%clk 0:02:41]} 6. O-O {[%clk 0:02:56]}  Qc7 {[%clk 0:02:41]} 7. c4 {[%clk 0:02:55]}  Nc6 {[%clk 0:02:41]} 8. Nxc6 {[%clk 0:02:54]}  dxc6 {[%clk 0:02:42]} 9. f4 {[%clk 0:02:53]}  e5 {[%clk 0:02:41]} 10. Nc3 {[%clk 0:02:48]}  Bc5+ {[%clk 0:02:39]} 11. Kh1 {[%clk 0:02:48]}  O-O {[%clk 0:02:39]} 12. f5 {[%clk 0:02:37]}  Rd8 {[%clk 0:02:28]} 13. Qf3 {[%clk 0:02:35]}  b5 {[%clk 0:02:10]} 14. Bg5 {[%clk 0:02:31]}  b4 {[%clk 0:01:55]} 15. Bxf6 {[%clk 0:02:25]}  gxf6 {[%clk 0:01:55]} 16. Ne2 {[%clk 0:02:23]}  Kh8 {[%clk 0:01:43]} 17. Rad1 {[%clk 0:02:17]}  Bb7 {[%clk 0:01:41]} 18. Ng3 {[%clk 0:02:16]}  Bd4 {[%clk 0:01:32]} 19. Nh5 {[%clk 0:02:04]}  Qe7 {[%clk 0:01:31]} 20. Rd2 {[%clk 0:02:01]}  Rg8 {[%clk 0:01:28]} 21. Rfd1 {[%clk 0:01:47]}  c5 {[%clk 0:01:28]} 22. Qh3 {[%clk 0:01:39]}  Rg5 {[%clk 0:01:16]} 23. Ng3 {[%clk 0:01:29]}  Rag8 {[%clk 0:01:12]} 24. Qh6 {[%clk 0:01:27]}  Be3 {[%clk 0:01:01]} 25. Re2 {[%clk 0:01:15]}  Bf4 {[%clk 0:00:44]} 26. Nh5 {[%clk 0:01:09]}  R5g6 {[%clk 0:00:44]} 27. Qxf4 {[%clk 0:01:03]}  exf4 {[%clk 0:00:43]} 28. fxg6 {[%clk 0:01:04]}  fxg6 {[%clk 0:00:38]} 29. Nxf4 {[%clk 0:01:05]}  Qe5 {[%clk 0:00:35]} 30. Rf1 {[%clk 0:01:01]}  Rd8 {[%clk 0:00:34]} 31. Bb1 {[%clk 0:00:58]}  Bc8 {[%clk 0:00:26]} 32. h3 {[%clk 0:00:57]}  Bb7 {[%clk 0:00:25]} 33. Bc2 {[%clk 0:00:50]}  Rd4 {[%clk 0:00:25]} 34. Ref2 {[%clk 0:00:40]}  Rxc4 {[%clk 0:00:23]} 35. Bb3 {[%clk 0:00:39]}  Rxe4 {[%clk 0:00:24]} 36. Nd3 {[%clk 0:00:39]}  Qh5 {[%clk 0:00:21]} 37. Rxf6 {[%clk 0:00:36]}  Re8 {[%clk 0:00:12]} 38. Rf8+ {[%clk 0:00:35]}  Rxf8 {[%clk 0:00:12]} 39. Rxf8+ {[%clk 0:00:36]}  Kg7 {[%clk 0:00:13]} 40. Rf7+ {[%clk 0:00:36]}  Kh6 {[%clk 0:00:13]} 41. Rxb7 {[%clk 0:00:37]}  Qe2 {[%clk 0:00:09]} 42. Rd7 {[%clk 0:00:26]}  a5 {[%clk 0:00:06]} 43. Bc4 {[%clk 0:00:21]}  Qd2 {[%clk 0:00:06]} 44. b3 {[%clk 0:00:19]}  Qd1+ {[%clk 0:00:06]} 45. Kh2 {[%clk 0:00:19]}  a4 {[%clk 0:00:06]} 46. Ne5 {[%clk 0:00:18]}  Qc2 {[%clk 0:00:04]} 47. Nf7+ {[%clk 0:00:18]}  Kh5 {[%clk 0:00:04]} 48. Rd5+ {[%clk 0:00:12]}  Kh4 {[%clk 0:00:03]} 1-0


[Site "https://www.chess.com"]

[Event "Titled Tuesday Blitz August 22 Early 2023"]
[White "Ghosh, Chanchal Kumer"]
[Black "Novikova, Galina"]
[WhiteFideId "10201858"]
[BlackFideId "4157095"]
[WhiteElo "2086"]
[BlackElo "2394"]
[Result "0-1"]
[Round "9"]
[TimeControl "180+1"]
[Date "2023.08.22"]
[WhiteClock "0:00:17"]
[BlackClock "0:00:21"]
[Board "182"]

1. e4 {[%clk 0:03:00]}  e5 {[%clk 0:02:58]} 2. Nf3 {[%clk 0:03:01]}  Nc6 {[%clk 0:02:58]} 3. Bc4 {[%clk 0:03:01]}  Nf6 {[%clk 0:02:57]} 4. Ng5 {[%clk 0:03:00]}  d5 {[%clk 0:02:49]} 5. exd5 {[%clk 0:03:01]}  b5 {[%clk 0:02:49]} 6. Bf1 {[%clk 0:02:59]}  Nd4 {[%clk 0:02:44]} 7. c3 {[%clk 0:02:57]}  Nxd5 {[%clk 0:02:43]} 8. cxd4 {[%clk 0:02:56]}  Qxg5 {[%clk 0:02:42]} 9. Bxb5+ {[%clk 0:02:56]}  Kd8 {[%clk 0:02:40]} 10. Qf3 {[%clk 0:02:53]}  Bb7 {[%clk 0:02:06]} 11. O-O {[%clk 0:02:26]}  exd4 {[%clk 0:02:04]} 12. d3 {[%clk 0:02:19]}  Qg6 {[%clk 0:02:01]} 13. Bc4 {[%clk 0:02:05]}  c6 {[%clk 0:01:44]} 14. Nd2 {[%clk 0:01:57]}  Bd6 {[%clk 0:01:34]} 15. Ne4 {[%clk 0:01:55]}  Bc7 {[%clk 0:01:19]} 16. Nc5 {[%clk 0:01:54]}  Bc8 {[%clk 0:01:13]} 17. Bxd5 {[%clk 0:01:52]}  Qd6 {[%clk 0:01:10]} 18. Bg5+ {[%clk 0:01:17]}  f6 {[%clk 0:01:10]} 19. Bf4 {[%clk 0:01:16]}  Qxd5 {[%clk 0:00:52]} 20. Bxc7+ {[%clk 0:01:13]}  Kxc7 {[%clk 0:00:53]} 21. Qg3+ {[%clk 0:01:13]}  Qe5 {[%clk 0:00:42]} 22. Qxg7+ {[%clk 0:01:11]}  Kb6 {[%clk 0:00:42]} 23. Na4+ {[%clk 0:01:09]}  Ka5 {[%clk 0:00:42]} 24. Qxh8 {[%clk 0:01:03]}  Kxa4 {[%clk 0:00:42]} 25. Rfe1 {[%clk 0:00:54]}  Qg5 {[%clk 0:00:41]} 26. Qe8 {[%clk 0:00:49]}  Bb7 {[%clk 0:00:32]} 27. Qe7 {[%clk 0:00:48]}  Rg8 {[%clk 0:00:26]} 28. g3 {[%clk 0:00:34]}  Rg7 {[%clk 0:00:27]} 29. Qa3+ {[%clk 0:00:29]}  Kb5 {[%clk 0:00:27]} 30. Qb3+ {[%clk 0:00:19]}  Ka6 {[%clk 0:00:27]} 31. Qa4+ {[%clk 0:00:19]}  Kb6 {[%clk 0:00:26]} 32. Qxd4+ {[%clk 0:00:19]}  Kc7 {[%clk 0:00:27]} 33. Qxa7 {[%clk 0:00:19]}  Qd5 {[%clk 0:00:25]} 34. Qa5+ {[%clk 0:00:18]}  Qxa5 {[%clk 0:00:24]} 35. Re4 {[%clk 0:00:19]}  Qd5 {[%clk 0:00:23]} 36. Rae1 {[%clk 0:00:18]}  c5 {[%clk 0:00:22]} 37. f3 {[%clk 0:00:18]}  Qxd3 {[%clk 0:00:21]} 38. R4e3 {[%clk 0:00:18]}  Qd4 {[%clk 0:00:21]} 39. Re2 {[%clk 0:00:19]}  Re7 {[%clk 0:00:21]} 40. Kf2 {[%clk 0:00:20]}  Rxe3 {[%clk 0:00:22]} 41. Rxe3 {[%clk 0:00:20]}  c4 {[%clk 0:00:20]} 42. a3 {[%clk 0:00:20]}  Qxb2+ {[%clk 0:00:20]} 43. Re2 {[%clk 0:00:20]}  Qxa3 {[%clk 0:00:20]} 44. Re3 {[%clk 0:00:20]}  Qc5 {[%clk 0:00:20]} 45. Ke2 {[%clk 0:00:19]}  c3 {[%clk 0:00:21]} 46. Kf2 {[%clk 0:00:17]}  c2 {[%clk 0:00:21]} 0-1


[Site "https://www.chess.com"]

[Event "Titled Tuesday Blitz August 22 Early 2023"]
[White "Vachier-Lagrave, Maxime"]
[Black "Erigaisi Arjun"]
[WhiteFideId "623539"]
[BlackFideId "35009192"]
[WhiteElo "3141"]
[BlackElo "3073"]
[Result "0-1"]
[Round "10"]
[TimeControl "180+1"]
[Date "2023.08.22"]
[WhiteClock "0:00:00"]
[BlackClock "0:00:05"]
[Board "2"]

1. Nf3 {[%clk 0:03:00]}  d6 {[%clk 0:02:58]} 2. e4 {[%clk 0:02:59]}  c5 {[%clk 0:02:56]} 3. d4 {[%clk 0:02:55]}  cxd4 {[%clk 0:02:56]} 4. Nxd4 {[%clk 0:02:56]}  Nf6 {[%clk 0:02:56]} 5. Nc3 {[%clk 0:02:56]}  a6 {[%clk 0:02:56]} 6. Bd3 {[%clk 0:02:55]}  g6 {[%clk 0:02:55]} 7. f3 {[%clk 0:02:48]}  Bg7 {[%clk 0:02:53]} 8. Be3 {[%clk 0:02:49]}  O-O {[%clk 0:02:53]} 9. Qd2 {[%clk 0:02:49]}  Nc6 {[%clk 0:02:52]} 10. O-O-O {[%clk 0:02:48]}  d5 {[%clk 0:02:51]} 11. Qf2 {[%clk 0:01:56]}  e5 {[%clk 0:02:45]} 12. Nxc6 {[%clk 0:01:56]}  bxc6 {[%clk 0:02:46]} 13. Bb6 {[%clk 0:01:55]}  Qd7 {[%clk 0:02:39]} 14. Bc5 {[%clk 0:01:48]}  Rd8 {[%clk 0:02:29]} 15. Na4 {[%clk 0:01:47]}  Qb7 {[%clk 0:02:27]} 16. Rhe1 {[%clk 0:01:41]}  Be6 {[%clk 0:02:25]} 17. b3 {[%clk 0:01:37]}  Nd7 {[%clk 0:02:22]} 18. Be7 {[%clk 0:01:36]}  Re8 {[%clk 0:02:18]} 19. Ba3 {[%clk 0:01:34]}  d4 {[%clk 0:02:13]} 20. Qf1 {[%clk 0:01:34]}  Bf8 {[%clk 0:02:04]} 21. Bxf8 {[%clk 0:01:33]}  Rxf8 {[%clk 0:02:01]} 22. Bc4 {[%clk 0:01:15]}  Bxc4 {[%clk 0:01:46]} 23. Qxc4 {[%clk 0:01:16]}  Qb5 {[%clk 0:01:47]} 24. Nb2 {[%clk 0:01:16]}  Nb6 {[%clk 0:01:46]} 25. Qxb5 {[%clk 0:00:47]}  axb5 {[%clk 0:01:47]} 26. Nd3 {[%clk 0:00:47]}  Nd7 {[%clk 0:01:40]} 27. Kb2 {[%clk 0:00:40]}  c5 {[%clk 0:01:40]} 28. a3 {[%clk 0:00:35]}  c4 {[%clk 0:01:39]} 29. Nb4 {[%clk 0:00:32]}  c3+ {[%clk 0:01:25]} 30. Ka2 {[%clk 0:00:32]}  Rfc8 {[%clk 0:01:01]} 31. Nd3 {[%clk 0:00:27]}  Ra7 {[%clk 0:00:53]} 32. Rb1 {[%clk 0:00:20]}  Rca8 {[%clk 0:00:46]} 33. a4 {[%clk 0:00:21]}  f6 {[%clk 0:00:47]} 34. Ka3 {[%clk 0:00:19]}  Kf7 {[%clk 0:00:46]} 35. f4 {[%clk 0:00:17]}  Ke6 {[%clk 0:00:45]} 36. Rf1 {[%clk 0:00:17]}  Kd6 {[%clk 0:00:35]} 37. fxe5+ {[%clk 0:00:16]}  fxe5 {[%clk 0:00:36]} 38. Rf7 {[%clk 0:00:13]}  Nc5 {[%clk 0:00:20]} 39. Rxa7 {[%clk 0:00:12]}  Rxa7 {[%clk 0:00:21]} 40. Nxc5 {[%clk 0:00:11]}  Kxc5 {[%clk 0:00:21]} 41. b4+ {[%clk 0:00:06]}  Kc4 {[%clk 0:00:22]} 42. a5 {[%clk 0:00:06]}  d3 {[%clk 0:00:22]} 43. cxd3+ {[%clk 0:00:06]}  Kxd3 {[%clk 0:00:23]} 44. Rd1+ {[%clk 0:00:03]}  Kc4 {[%clk 0:00:18]} 45. Rd5 {[%clk 0:00:03]}  Rc7 {[%clk 0:00:17]} 46. a6 {[%clk 0:00:03]}  c2 {[%clk 0:00:13]} 47. Kb2 {[%clk 0:00:03]}  Kxb4 {[%clk 0:00:14]} 48. Kc1 {[%clk 0:00:04]}  Ka5 {[%clk 0:00:06]} 49. Rxe5 {[%clk 0:00:02]}  Kxa6 {[%clk 0:00:06]} 50. Re8 {[%clk 0:00:02]}  b4 {[%clk 0:00:05]} 51. Rb8 {[%clk 0:00:02]}  Ka5 {[%clk 0:00:05]} 52. e5 {[%clk 0:00:02]}  Ka4 {[%clk 0:00:05]} 53. e6 {[%clk 0:00:02]}  Kb3 {[%clk 0:00:06]} 54. g4 {[%clk 0:00:01]}  Ra7 {[%clk 0:00:04]} 55. Rc8 {[%clk 0:00:01]}  Ra1+ {[%clk 0:00:04]} 56. Kd2 {[%clk 0:00:00]}  Rd1+ {[%clk 0:00:05]} 0-1


[Site "https://www.chess.com"]